Cogmind - Beta 16 @@@ ROGUE MODE // 2026.01.23 @ 21:46:43 Player: vorsii Result: Destroyed by TX-2IG(z) with Zionite Laser-S Performance ------------- Evolutions (1) 500 Regions Visited (5) 1000 Robots Destroyed (53) 265 Value Destroyed (1369) 1369 Prototype IDs (6) 120 Alien Tech Used (0) 0 Bonus (600) 600 TOTAL SCORE: 3854 Bonus ------- Met Imprinter 300 Was Imprinted 300 Cogmind --------- Core Integrity 0/400 Matter 280/300 Energy 85/100 System Corruption 0% Temperature Hot (208) Movement Core (1650) Ox32 Location -7/Deep Caves Parts ------- > --- POWER (1) -------- (None) > --- PROPULSION (2) --- (None) > --- UTILITY (4) ------ Huge Storage Unit Machine Analyzer Visual Processing Unit Hacking Drone Bay (1/1) > --- WEAPON (2) ------- RU-N14's Throwing Claymores RU-N14's Throwing Claymores > --- INVENTORY (25) --- Improved Deuterium Engine Structural Scanner Machine Analyzer Advanced Terrain Scan Processor Targeting Computer Armor Integrity Analyzer ECM Suite Heavy Particle Cannon Heavy Assault Rifle Autogun Autogun High-powered Shotgun High-powered Shotgun High-powered Shotgun Improved Light Cannon Improved Light Cannon Flak Cannon Flak Cannon Flak Cannon EMP Blaster Mini Grenade Launcher Rocket Array Datajack Mining Laser Peak State ------------ > --- POWER ------------ Light Angular Momentum Engine > --- PROPULSION ------- Medium Treads Compact Wheel > --- UTILITY ---------- Huge Storage Unit Machine Analyzer Visual Processing Unit Hacking Drone Bay > --- WEAPON ----------- Heavy Particle Cannon Rocket Array > --- INVENTORY -------- Improved Deuterium Engine Structural Scanner Machine Analyzer Advanced Terrain Scan Processor Targeting Computer Armor Integrity Analyzer ECM Suite Beamcaster Heavy Assault Rifle Autogun Autogun High-powered Shotgun High-powered Shotgun High-powered Shotgun Improved Light Cannon Improved Light Cannon Flak Cannon Flak Cannon Flak Cannon EMP Blaster Mini Grenade Launcher Datajack Mining Laser RU-N14's Throwing Claymores RU-N14's Throwing Claymores [Rating: 40] Favorites ----------- Power Improved Ion Engine Engine Improved Ion Engine Propulsion Wheel Treads Medium Treads Wheel Wheel Utility Huge Storage Unit Device ECM Suite Storage Huge Storage Unit Processor Visual Processing Unit Hackware Hacking Suite Weapon High-powered Shotgun Energy Gun Medium Laser Energy Cannon Heavy Particle Cannon Ballistic Gun High-powered Shotgun Ballistic Cannon Flak Cannon Launcher Rocket Array Special Weapon RU-N14's Throwing Claymores Special Melee Weapon Datajack Build | -11 -10 -9 -9 -7 -7 ------- Run | Yrd Mat Mat Min Zio Dee Slots Evolved 2 | . . 2 . . . Power . | . . . . . . Propulsion . | . . . . . . Utility 2 | . . 2 . . . Weapon . | . . . . . . Parts Attached 55 | 6 6 33 3 5 2 Power 10 | 1 . 8 1 . . Engine 10 | 1 . 8 1 . . Core . | . . . . . . Reactor . | . . . . . . Propulsion 12 | 2 1 8 . 1 . Treads 3 | . . 2 . 1 . Leg . | . . . . . . Wheel 9 | 2 1 6 . . . Hover . | . . . . . . Flight . | . . . . . . Utility 12 | 1 2 8 . 1 . Device 3 | . . 2 . 1 . Storage 2 | 1 1 . . . . Processor 5 | . 1 4 . . . Hackware 2 | . . 2 . . . Protection . | . . . . . . Artifact . | . . . . . . Weapon 21 | 2 3 9 2 3 2 Energy Gun 4 | 1 . 2 . . 1 Energy Cannon 1 | . . . . 1 . Ballistic Gun 8 | 1 1 5 1 . . Ballistic Cannon 3 | . . 2 1 . . Launcher 1 | . . . . 1 . Special Weapon 2 | . . . . 1 1 Impact Weapon . | . . . . . . Slashing Weapon . | . . . . . . Piercing Weapon . | . . . . . . Special Melee Weapon 2 | . 2 . . . . Unidentified Prototypes 4 | . . 1 . 3 . Parts Lost 23 | . 1 15 3 . 4 Power 5 | . . 3 1 . 1 Propulsion 9 | . . 6 1 . 2 Utility 2 | . . 2 . . . Weapon 7 | . 1 4 1 . 1 Highest Loss Streak 5 | . 1 5 3 . 4 To Critical Strikes . | . . . . . . Average Backups 22 | . 11 22 24 24 25 Power 1 | . 1 1 . . 1 Propulsion . | . 1 . . . . Utility 5 | . 1 5 7 6 6 Weapon 14 | . 5 13 16 17 17 Tool/Special . | . . . . . . Unused Backups 30 | . . 7 . 8 15 Power 4 | . . 3 . . 1 Propulsion . | . . . . . . Utility 9 | . . . . 4 5 Weapon 17 | . . 4 . 4 9 Tool/Special . | . . . . . . Average Slot Usage (%) 91 | . 97 91 87 88 98 Engine 11 | . 14 10 8 11 10 Wheel 15 | . 28 15 13 11 10 Device 9 | . . 10 11 11 11 Storage 11 | . 14 11 11 11 11 Processor 20 | . 11 20 22 22 22 Energy Cannon 1 | . . . . 4 10 Ballistic Gun 11 | . 25 11 11 6 . Ballistic Cannon 4 | . . 9 10 . . Launcher 3 | . . . . 10 10 Peak Build Rating 40 | 6 9 22 24 40 40 Average Rating 21 | 3 8 19 22 28 39 On Entrance 16 | . 6 9 22 24 40 Avg Prop Armor Cover (%) 9 | . . 5 . 11 11 Naked Turns . | . . . . . . Heaviest Build 106 | 14 89 98 100 106 103 Greatest Support 32 | 26 32 32 32 16 16 Greatest Overweight (x) 32 | . 3 32 6 6 6 Average Overweight (x) 5 | . 2 5 5 6 6 Largest Inventory Capacity 25 | 8 25 25 25 25 25 Average Capacity 24 | 6 22 25 25 25 25 Most Carried 25 | 3 16 25 25 25 25 Average Carried 22 | 1 11 22 24 24 24 Final Capacity 25 | 8 25 25 25 25 25 Final Carried 25 | 2 16 25 25 25 24 Class Distribution -------------------- 88% | Mutant 11% | Scavenger-Mutant Dominant Class ---------------- Mutant | -10/Materials Mutant | -9/Materials Mutant | -9/Mines Mutant | -7/Zion Mutant | -7/Deep Caves Resources | -11 -10 -9 -9 -7 -7 ----------- Run | Yrd Mat Mat Min Zio Dee Matter Collected 1957 | 259 412 1107 122 57 . Remotely . | . . . . . . Salvage Created 1560 | . 435 1008 117 . . Parts 111 | . 22 87 2 . . Haulers Intercepted 1 | . 1 . . . . Recyclers Shooed 2 | . 2 . . . . Parts Field Recycled . | . . . . . . Retrieved Matter . | . . . . . . Parts Self-Destructed 2 | . . . . 2 . Prevented . | . . . . . . Parts Restored . | . . . . . . Kills | -11 -10 -9 -9 -7 -7 ------- Run | Yrd Mat Mat Min Zio Dee Combat Hostiles Destroyed 36 | . 6 28 2 . . Guns 25 | . 6 19 . . . Cannons 11 | . . 9 2 . . Classes Destroyed 9 | . 7 2 . . . Worker 2 | . 1 1 . . . Builder 5 | . 1 4 . . . Hauler 1 | . 1 . . . . Recycler 3 | . 1 1 1 . . Operator 3 | . 1 2 . . . Watcher 3 | . 1 2 . . . Swarmer 6 | . . 6 . . . Grunt 20 | . 6 12 2 . . Sentry 10 | . . 10 . . . Best Kill Streak 6 | . 3 6 2 . . Combat Bots Only 6 | . 2 6 2 . . Max Kills in Single Turn 2 | . 2 1 1 . . Gunslinging . | . . . . . . Exploded . | . . . . . . Melee . | . . . . . . Uniques/NPCs Destroyed . | . . . . . . Combat | -11 -10 -9 -9 -7 -7 -------- Run | Yrd Mat Mat Min Zio Dee Hostile Shots Fired 256 | . 27 186 16 . 27 Missed 74 | . 8 58 3 . 5 Hits 182 | . 19 128 13 . 22 Projectile 182 | . 19 128 13 . 22 Critical Strikes 1 | . . 1 . . . Damage Taken 2735 | . 236 1593 172 . 734 Core 489 | . 79 291 28 . 91 Absorbed by Shields . | . . . . . . Regen/Repaired (Parts) 265 | . . 117 . 148 . Core Remaining (%) 84 | 100 68 . . . . Volleys Fired 185 | . 56 114 10 . 5 Largest 2 | . 2 2 2 . 2 Hottest 75 | . 40 70 62 . 75 Shots Fired 352 | . 112 219 15 . 6 Gun 277 | . 112 152 10 . 3 Cannon 74 | . . 67 5 . 2 Launcher . | . . . . . . Special 1 | . . . . . 1 Kinetic 325 | . 112 198 15 . . Thermal 26 | . . 21 . . 5 Explosive 1 | . . . . . 1 Electromagnetic . | . . . . . . Robot Hit Streak 16 | . 6 16 5 . 1 Robot Miss Streak 13 | . 4 13 3 . 5 Penetration Max . | . . . . . . Secondary Targets 1 | . 1 . . . . Max Gunslinging Chain 1 | . 1 . . . . Shots Hit Robots 233 | . 75 149 8 . 1 Core Hits 123 | . 21 93 7 . 2 Critical Kills 1 | . . 1 . . . Critical Parts Destroyed 1 | . 1 . . . . Critical Strikes 5 | . 1 4 . . . Burn 3 | . . 3 . . . Destroy 2 | . 1 1 . . . Melee Attacks 8 | . 8 . . . . Impact . | . . . . . . Slashing . | . . . . . . Piercing . | . . . . . . Sneak Attacks 5 | . 5 . . . . Combat Hostiles . | . . . . . . Follow-up Attacks . | . . . . . . Damage Inflicted 3351 | . 824 2165 128 . 234 Guns 2268 | . 824 1349 95 . . Cannons 849 | . . 816 33 . . Explosions 202 | . . . . . 202 Melee . | . . . . . . Ramming . | . . . . . . Kinetic 2931 | . 824 1979 128 . . Thermal 186 | . . 186 . . . Explosive 202 | . . . . . 202 Electromagnetic . | . . . . . . Impact . | . . . . . . Slashing 32 | . . . . . 32 Piercing . | . . . . . . Highest Corruption 2 | . 1 2 2 2 . Average Corruption 1 | . 1 1 2 2 . Corruption Purged . | . . . . . . Corruption Blocked . | . . . . . . Effects 26 | . . 14 7 5 . Message Errors 6 | . . 1 2 3 . Matter Fused 6 | . . 3 3 . . Heat Flow Errors 7 | . . 4 2 1 . Energy Discharges 3 | . . 2 . 1 . Data Loss (minor) 1 | . . 1 . . . Data Loss (major) 2 | . . 2 . . . Misfires 1 | . . 1 . . . Overload Shots . | . . . . . . Overflow Damage 35 | . . . . . 35 Projectiles . | . . . . . . Explosions 35 | . . . . . 35 Melee . | . . . . . . Knockbacks 12 | . . 12 . . . Impact . | . . . . . . Kinetic 12 | . . 12 . . . Secondary . | . . . . . . Self-Inflicted Damage 43 | . . 43 . . . Shots 1 | . . 1 . . . Rammed . | . . . . . . Targets Rammed . | . . . . . . Kicked . | . . . . . . Crushed . | . . . . . . Highest Temperature 254 | . 6 254 127 237 227 Average Temperature 61 | . 6 49 52 121 144 Received Heat Transfer 984 | . 114 564 99 . 207 Siege Activations . | . . . . . . Martial Activations . | . . . . . . Shielding Activations . | . . . . . . Robots Disrupted . | . . . . . . Combat Hostiles . | . . . . . . Robots Corrupted . | . . . . . . Combat Hostiles . | . . . . . . Parts Fried . | . . . . . . Impact Corruptions . | . . . . . . Robots Melted . | . . . . . . Combat Hostiles . | . . . . . . Parts Melted 2 | . . 2 . . . Heat Transferred 777 | . . 777 . . . Parts Sabotaged . | . . . . . . Parts Stolen . | . . . . . . Parts Stripped . | . . . . . . Power Chain Reactions . | . . . . . . Alert | -11 -10 -9 -9 -7 -7 ------- Run | Yrd Mat Mat Min Zio Dee Maximum Alert Level 1 | . . 1 . . . Low Security (%) 80 | 100 100 74 100 . . Level 1 19 | . . 25 . . . Level 2 . | . . . . . . Level 3 . | . . . . . . Level 4 . | . . . . . . Level 5 . | . . . . . . High Security . | . . . . . . Max Security . | . . . . . . Peak Influence 227 | . 47 227 81 . . Initial 81 | . . . 81 . . Average 84 | . 9 104 46 . . Influence Increases 1148 | . 204 889 55 . . Destroy 0b10 Robot/C 720 | . 120 560 40 . . Destroy 0b10 Robot/NC 85 | . 30 50 5 . . Destroy Leader 218 | . 34 174 10 . . Successful Hack 75 | . 20 55 . . . Disable Machine 15 | . . 15 . . . Destroy Structure 5 | . . 5 . . . Lose Combat Pursuer 30 | . . 30 . . . Influence Decreases 1148 | . 204 679 265 . . Entered New Map 129 | . . . 129 . . Time Decay 869 | . 204 559 106 . . Lost Part 150 | . . 120 30 . . Squads Dispatched 8 | . 3 5 . . . Investigation 2 | . 1 1 . . . Extermination . | . . . . . . Reinforcement 6 | . 2 4 . . . Assault . | . . . . . . Garrison . | . . . . . . Intercept . | . . . . . . Searches Triggered . | . . . . . . Construction Impeded . | . . . . . . Haulers Reinforced . | . . . . . . Active Scanning Responses . | . . . . . . Cargo Convoy Interrupts . | . . . . . . Stealth | -11 -10 -9 -9 -7 -7 --------- Run | Yrd Mat Mat Min Zio Dee Distress Signals 3 | . 1 2 . . . Communications Jammed . | . . . . . . Distress Signals . | . . . . . . Times Spotted 86 | . 15 66 2 . 3 Peak Tracking Total 8 | . 4 8 2 . 3 Tactical Retreats 12 | . . 12 . . . ECM-based Alert Blocks 19 | . . 19 . . . Traps | -11 -10 -9 -9 -7 -7 ------- Run | Yrd Mat Mat Min Zio Dee Traps Triggered 3 | . 2 1 . . . Indirectly . | . . . . . . Trap Hack Attempts . | . . . . . . Triggered . | . . . . . . Disarmed 4 | . . 4 . . . Reprogrammed . | . . . . . . Reused . | . . . . . . Traps Extracted . | . . . . . . Installed . | . . . . . . Triggered . | . . . . . . Machines | -11 -10 -9 -9 -7 -7 ---------- Run | Yrd Mat Mat Min Zio Dee Machines Disabled 1 | . . 1 . . . Max in Single Turn 1 | . . 1 . . . Machines Repaired . | . . . . . . Machines Dismantled . | . . . . . . Machines Sabotaged . | . . . . . . Overloaded Fab Kills . | . . . . . . Hacking | -11 -10 -9 -9 -7 -7 --------- Run | Yrd Mat Mat Min Zio Dee Machines Accessed 16 | . 3 13 . . . Terminals 12 | . 3 9 . . . Fabricators . | . . . . . . Repair Stations 2 | . . 2 . . . Recycling Units . | . . . . . . Scanalyzers 2 | . . 2 . . . Garrison Access . | . . . . . . Total Hacks 50 | . 8 42 . . . Successful 30 | . 6 24 . . . Failed 19 | . 2 17 . . . Catastrophic 4 | . . 4 . . . Database Lockouts 1 | . . 1 . . . Manual 13 | . . . . 13 . Terminals 32 | . 8 24 . . . Fabricators . | . . . . . . Repair Stations 12 | . . 12 . . . Recycling Units . | . . . . . . Scanalyzers 6 | . . 6 . . . Garrison Access . | . . . . . . Terminal Hacks 20 | . 6 14 . . . Record 4 | . . 4 . . . Prototype ID Bank 1 | . 1 . . . . Level Access Points 1 | . 1 . . . . Branch Access Points 2 | . 1 1 . . . Emergency Access Points 2 | . . 2 . . . Alert Level 1 | . . 1 . . . Disarm Traps 1 | . . 1 . . . Maintenance Status 1 | . . 1 . . . Assault Status 2 | . . 2 . . . Recall Investigation 1 | . . 1 . . . Zone Layout 4 | . 3 1 . . . Fabricator Hacks . | . . . . . . Repair Station Hacks 7 | . . 7 . . . Scan Component 4 | . . 4 . . . Repair 3 | . . 3 . . . Recycling Unit Hacks . | . . . . . . Scanalyzer 3 | . . 3 . . . Retrieve Study 3 | . . 3 . . . Garrison Access Hacks . | . . . . . . Unauthorized Hacks . | . . . . . . Terminals . | . . . . . . Fabricators . | . . . . . . Repair Stations . | . . . . . . Recycling Units . | . . . . . . Scanalyzers . | . . . . . . Garrison Access . | . . . . . . Data Cores Recovered . | . . . . . . Used . | . . . . . . Hacking Detections 11 | . 3 8 . . . Full Trace Events 2 | . . 2 . . . Feedback Events . | . . . . . . Feedback Blocked . | . . . . . . Robot Schematics Acquired . | . . . . . . Robots Built . | . . . . . . Authchips . | . . . . . . Time . | . . . . . . Total Robot Build Rating . | . . . . . . Part Schematics Acquired . | . . . . . . Parts Built . | . . . . . . Authchips . | . . . . . . Time . | . . . . . . Total Part Build Rating . | . . . . . . Part Studies Acquired 2 | . . 2 . . . Parts Repaired 3 | . . 3 . . . Time 112 | . . 112 . . . Parts Recycled . | . . . . . . Recycled Matter . | . . . . . . Retrieved Matter . | . . . . . . Retrieved Components . | . . . . . . Parts Scanalyzed . | . . . . . . Part Schematics Acquired . | . . . . . . Parts Damaged . | . . . . . . Bothacking | -11 -10 -9 -9 -7 -7 ------------ Run | Yrd Mat Mat Min Zio Dee Used RIF Installer . | . . . . . . Robots Hacked 6 | . 6 . . . . Non-combat 5 | . 5 . . . . Combat 1 | . 1 . . . . Robot Hacks Applied 7 | . 7 . . . . parse_system 6 | . 6 . . . . no_distress 1 | . 1 . . . . Relay Couplers Released . | . . . . . . Fabnet Peak Effective % . | . . . . . . Robots Rewired . | . . . . . . Allies Hacked . | . . . . . . Hacks Repelled . | . . . . . . Allies | -11 -10 -9 -9 -7 -7 -------- Run | Yrd Mat Mat Min Zio Dee Total Allies 4 | . . . . 4 . Largest Group 4 | . . . . 4 . Highest-Rated Group 159 | . . . . 159 . Highest-Rated Ally 41 | . . . . 41 . Total Orders . | . . . . . . Ally Attacks . | . . . . . . Total Damage . | . . . . . . Kills . | . . . . . . Allies Corrupted . | . . . . . . Allies Melted . | . . . . . . Intel | -11 -10 -9 -9 -7 -7 ------- Run | Yrd Mat Mat Min Zio Dee Active Infowar (turns) 7065 | . 679 3558 227 2329 272 Optics 6958 | . 679 3451 227 2329 272 Machine Analysis 5874 | . . 3046 227 2329 272 ECM 5679 | . . 3557 227 1895 . Robot Analysis Total . | . . . . . . Derelict Logs Recovered 1 | . . . . 1 . Drone Launches 1 | . . . . 1 . Drone Recoveries 1 | . . . . . 1 Exploration | -11 -10 -9 -9 -7 -7 ------------- Run | Yrd Mat Mat Min Zio Dee Turns Passed 7241 | 41 807 3565 227 2329 272 Spaces Moved 3464 | 34 469 1506 107 1213 135 Core 36 | 9 . 27 . . . Treads . | . . . . . . Legs . | . . . . . . Wheels 3428 | 25 469 1479 107 1213 135 Hover . | . . . . . . Flight . | . . . . . . Fastest Speed 50 | 50 90 130 130 190 190 Average Speed 179 | 79 125 189 179 190 190 Slowest Speed 1650 | 90 135 1650 190 190 190 Overloaded Moves . | . . . . . . Propulsion Burnouts . | . . . . . . Robots Hopped 2 | . . . . 2 . Potential Cave-ins . | . . . . . . Cave-ins Triggered . | . . . . . . Exploration Rate (%) 49 | 3 62 89 26 93 25 Regions Visited 5 Branch Regions 3 Pre-discovered Areas 1 | . . . . 1 . Known Exits Taken 2 | . 1 1 . . . Unknown Exits Taken 3 | 1 . . 1 1 . Scrap Searched 4 | . . . 1 3 . Spaces Dug . | . . . . . . Terrain Destroyed 16 | . . . . . 16 Melee . | . . . . . . Projectile . | . . . . . . AOE 16 | . . . . . 16 Terrain Rammed . | . . . . . . Walls Destroyed . | . . . . . . Machines Disabled . | . . . . . . Actions | -11 -10 -9 -9 -7 -7 --------- Run | Yrd Mat Mat Min Zio Dee Total 4128 | 47 569 2005 126 1238 143 Wait 301 | . 12 282 6 1 . Move 3455 | 33 468 1505 106 1208 135 Hop 2 | . . . . 2 . Pick Up 78 | 8 16 44 1 9 . Fast Attach 6 | . 1 3 1 1 . Attach 27 | 6 1 18 1 . 1 Detach 1 | . . 1 . . . Swap 32 | . 6 18 1 5 2 Drop 30 | . 1 20 . 9 . Fire 185 | . 56 114 10 . 5 Melee 8 | . 8 . . . . Ram . | . . . . . . Kick . | . . . . . . Crush . | . . . . . . Escape Stasis . | . . . . . . Rewire 3 | . . . . 3 . Trap . | . . . . . . Miscellaneous . | . . . . . . Route ------- -11/Scrapyard -10/Materials (discovered 4 exits: *Mat x3 / Min) -9/Materials (discovered 4 exits: [*Mat x3] / *Min) -9/Mines (discovered 2 exits: [*Mat] / *Zio) -7/Zion (discovered 2 exits: [*Dee] / [*Pro]) -7/Deep Caves History --------- Turn | Location | Event 23 | -11/Scrapyard | Discovered new exit (range 16) 42 | -11/Scrapyard | Entered Materials 67 | -10/Materials | Discovered new exit (range 17) 307 | -10/Materials | Build established: Mutant 562 | -10/Materials | Identified exit to Mines 795 | -10/Materials | Identified exit to Materials 849 | -10/Materials | Entered another Materials area 849 | -9/Materials | Evolved 2 slots: Utility x2 967 | -9/Materials | Lost 4 parts (2n2w) 1052 | -9/Materials | Lost 5 parts (2p1n1u1w) 1319 | -9/Materials | Build established: Scavenger-Mutant 1721 | -9/Materials | Build established: Mutant 1941 | -9/Materials | Discovered new exit (range 18) 2337 | -9/Materials | Build established: Scavenger-Mutant 2411 | -9/Materials | Identified exit to Mines 2608 | -9/Materials | Discovered new exit (range 5) 2668 | -9/Materials | Repaired Broken Wheel 2712 | -9/Materials | Repaired Hpw. Shotgun 2751 | -9/Materials | Repaired Flak Cannon 2799 | -9/Materials | Build established: Mutant 3109 | -9/Materials | Discovered new exit (range 6) 3295 | -9/Materials | Core integrity fell below 50% 3490 | -9/Materials | Central database locked down 4414 | -9/Materials | Entered Mines 4432 | -9/Mines | Discovered new exit (range 11) 4488 | -9/Mines | Lost 3 parts (1p1n1w) 4619 | -9/Mines | A Derelict revealed a hidden shortcut to a safe place 4641 | -9/Mines | Entered Zion 4703 | -7/Zion | Found Prototype Launcher 4704 | -7/Zion | Identified Rocket Array 4775 | -7/Zion | Received a visual enhancement algorithm 4777 | -7/Zion | Ran a visual enhancement algorithm 4790 | -7/Zion | Ran a visual enhancement algorithm 4790 | -7/Zion | Ran a visual enhancement algorithm 4819 | -7/Zion | Discovered new exit (range 10) 5132 | -7/Zion | System corruption cleaned by Quarantine Array 5208 | -7/Zion | Acquired unknown access codes intercepted by a Zionite 5588 | -7/Zion | Given A8's code to call for help 5626 | -7/Zion | Learned Factory trap positions 5780 | -7/Zion | Opened final containment barrier to the Deep Caves 5816 | -7/Zion | Discovered new exit (range 3) 5816 | -7/Zion | Saw the warning signs outside the Deep Caves entrance 5932 | -7/Zion | Found Prototype Special Weapon 5933 | -7/Zion | Identified RU-N14's Throwing Claymores 5937 | -7/Zion | Found RU-N14's Throwing Claymores 5980 | -7/Zion | Visited the Megawrench Repair Shop 5980 | -7/Zion | Megawrench repaired 4 parts 6074 | -7/Zion | Met Imprinter 6118 | -7/Zion | Imprinted 6120 | -7/Zion | Declared Zion's savior 6526 | -7/Zion | Given the Hacking Drone Bay 6535 | -7/Zion | Found Prototype Device 6536 | -7/Zion | Identified Hacking Drone Bay 6970 | -7/Zion | Entered Deep Caves 6970 | -7/Deep Caves | Accompanied by 5 allies 7219 | -7/Deep Caves | Attacked by Z-Imprinter 7221 | -7/Deep Caves | Core integrity fell below 20% 7242 | -7/Deep Caves | Destroyed by TX-2IG(z) with Zionite Laser-S Last Messages --------------- LOCATION=UNKNOWN GOAL=ESCAPE 06972_ 84-DOD(M): "Okay, we didn't really expect you'd be crazy enough to head out this way. We'll go back and get... reinforcements... yeah." 06972_ 84-DOD(M) slips into the shadows. 06973_ YZ-0H2(M) slips into the shadows. 06973_ VO-VMZ(M) slips into the shadows. 06974_ 3E-HXZ(M) slips into the shadows. The art gallery (ESC then open Records) doubles as a tally of all parts you've discovered and used throughout all runs. 07211_ NEW_ZION: Z-Facility proximity alert. Z-Imprinter: GET AWAY FROM HERE! I've worked too hard for our future just to have you ruin everything! 07221_ Hacking Drone retrieved by Hacking Drone Bay (no repairs). 07230_ Com. Wheel destroyed. 07233_ Med. Treads destroyed. 07238_ Destroyed Prototype Hover Unit. 07238_ Destroyed Prototype Storage. 07238_ Lgt. Angular Momentum Engine destroyed. 07240_ Beamcaster destroyed. Map ----- +----------------------------------------------------+ | | | | | | | | | | | | | | | | | | | | | | | | | ?????????????????????????????????????????????????? | | ?????????????##########??????????????????????????? | | ???????????? #?????????????????????????? | | ???????????? ?????###?????????????????? | | ??????????? ##?### ##?????######?????? | | ??????????? ## ; #???### ##????? | | ?????????? ##### #????? | | ??????????? #????? | | ?????????? #????? | | ?????????? ##????? | | ?????????? #?????? | | ????????????? """""" ##????? | | ???????????????""""" ###### | | ???????????????""""" @ | | ???????????????""""" z | | ??????????????""" I | | ??????????????"""""" z #### | | ??????????????"""""" ###??? | | ????????????????"""" ##????? | | ????????????????"""" #?????? | | ????????????????" " #?????? | | ????????????????o o ?????? | | ????????????????? ?????? | | ????????????????o ?????? | | ???????????????" ##????? | | ??????????????"""" #?????? | | ????????????????""""o ?????? | | ??????????????????? ??????? | | ??????????????????? ???? ??????? | | ????????????????????? ??????????? ???????? | | ??????????????????????? ?????????????????????? | | ?????????????????????????????????????????????????? | | ?????????????????????????????????????????????????? | | ?????????????????????????????????????????????????? | | ?????????????????????????????????????????????????? | | ?????????????????????????????????????????????????# | | ?????????????????????????????????????????????????# | | ?????????????????????????????????????????????????# | +----------------------------------------------------+ Best States ------------- Heat Dissipation 28 Energy Generation 18 Energy Capacity 265 Matter Stores 300 Matter Capacity 300 Sight Range 18 Terrain Scan Density 85 ECM Strength 1 Evasion (%) 42 Recoil Reduction 2 Offensive Hacking 10 Item Schematics ----------------- None Robot Schematics ------------------ None Fabricated ------------ Nothing Repaired ---------- Wheel | 35% | -9/Materials | Broken Hpw. Shotgun | 62% | -9/Materials Flak Cannon | 70% | -9/Materials Studied --------- Datajack | -9/Materials | Hacked Imp. Light Cannon | -9/Materials | Hacked Alien Tech Used ----------------- None Achievements -------------- Adventurer Junior Dev Robot Respite Signs Are For Wimps The One Challenges ------------ None Game ------ Seed SpectralLightLink Manual? 0 Play Time 01:21:03 Cumulative 12.0 hours Start 2026.01.23 @ 20:08:48 End 2026.01.23 @ 21:46:43 Sessions 1 Manual Loads 0 Difficulty Rogue Special Mode None Game No. 16 Rogue 16 Adventurer 0 Explorer 0 Win Type - Total 0 Types 0/0/0/0/0/0/0/0/0/0 Lore% 16 Gallery% 11 Achievement% 13 Wizard Run 0 Options --------- Layout 0 ASCII 0 Keyboard 0 Movement Mouse Keybinds 0 Fullscreen 1 Font 36/Smallcaps Map View 76x50 Zoom Use 0% Tactical HUD 1 Map Filters NONE Filters NONE Steam 1 RUN: 188ef6ef-c76c-4016-9914-7178e242f5bc